bitfinex/quotes_SOLUSD_20251120
["timestamp","ask_amount","ask_price","bid_price","bid_amount"]
[1763611072228,1.66,143.15,143.13,7.68646818]
[1763611073859,0.66,143.14,143.12,9.78882769]
[1763611074143,0.66,143.17,143.13,0.7]
[1763611074433,2.32,143.16,143.13,0.7]
[1763611074613,2.32,143.16,143.12,3.32819592]
[1763611074812,2.32,143.16,143.12,2.62819592]
[1763611075012,2.32,143.16,143.12,3.32819592]
[1763611075834,1.66,143.16,143.13,17.47548317]
[1763611076139,1.66,143.16,143.13,20.10367909]
[1763611076353,1.66,143.15,143.14,0.7]
[1763611077042,1.66,143.15,143.14,7.68616738]
[1763611078036,1.66,143.15,143.14,17.47499507]
[1763611080045,1.66,143.15,143.14,16.77499507]
[1763611080539,1.66,143.15,143.14,17.47499507]
[1763611082240,0.66,143.21,143.15,9.78882769]
[1763611082430,0.66,143.21,143.17,9.78882769]
[1763611082431,1.66,143.18,143.17,9.78882769]
[1763611082818,1.66,143.18,143.17,10.48882769]
[1763611083221,1.66,143.18,143.17,17.47353118]
[1763611083921,1.66,143.18,143.17,16.77353118]
[1763611085456,1.66,143.18,143.17,20.1017271]
[1763611086645,0.66,143.25,143.17,105.68444584]
[1763611086850,0.2,143.26,143.17,105.68444584]
[1763611086851,1.66,143.22,143.2,2.62819592]
[1763611087349,1.66,143.22,143.2,3.32819592]
[1763611087850,1.66,143.22,143.21,6.9827526]
[1763611089120,1.66,143.22,143.21,10.31094852]
[1763611090138,1.66,143.22,143.21,9.61094852]
[1763611091548,0.2,143.26,143.22,9.78882769]
[1763611091851,1.66,143.24,143.23,2.62819592]
[1763611092037,1.66,143.24,143.23,10.30997348]
[1763611093029,1.66,143.24,143.23,9.60997348]
[1763611093230,1.66,143.24,143.23,6.98177756]
[1763611093752,1.66,143.24,143.23,9.60997348]
[1763611095955,1.66,143.24,143.23,20.09880117]
[1763611098050,1.66,143.24,143.23,19.39880117]
[1763611098252,1.66,143.24,143.23,16.77060525]
[1763611098864,1.66,143.24,143.23,6.98177756]
[1763611099066,2.32,143.24,143.22,6.98214865]
[1763611099266,0.66,143.23,143.22,6.98214865]
[1763611099463,0.66,143.23,143.21,16.77138489]
[1763611099762,1.66,143.24,143.22,2.62819592]
[1763611100054,1.66,143.24,143.22,3.32819592]
[1763611101042,1.66,143.24,143.23,6.98177756]
[1763611102155,1.66,143.24,143.22,3.32819592]
[1763611102462,1.66,143.24,143.22,2.62819592]
[1763611102844,1.66,143.24,143.22,9.61032978]
[1763611103246,1.66,143.23,143.22,9.61032978]
[1763611108680,2.36,143.23,143.21,16.77156002]
[1763611108846,2.36,143.23,143.21,19.39975594]
[1763611109046,1.66,143.23,143.21,19.39975594]
[1763611109465,2.36,143.23,143.21,19.39975594]
[1763611109650,0.7,143.22,143.19,2.62819592]
[1763611110169,0.7,143.22,143.19,9.78882769]
[1763611110374,0.7,143.22,143.19,12.41702361]
[1763611110941,0.7,143.22,143.19,13.11702361]
[1763611111147,0.7,143.22,143.19,20.10054944]
[1763611111845,1.66,143.23,143.19,37.55986922]
[1763611112045,2.36,143.23,143.19,37.55986922]
[1763611112270,2.36,143.23,143.2,2.62819592]
[1763611112848,1.66,143.23,143.2,2.62819592]
[1763611113048,0.7,143.22,143.19,34.9316733]
[1763611113346,0.7,143.22,143.2,2.62819592]
[1763611113549,0.7,143.22,143.19,6.98352583]
[1763611114163,2.62819592,143.21,143.15,20.09188323]
[1763611114349,2.62819592,143.21,143.16,9.78882769]
[1763611114543,3.32819592,143.2,143.14,20.74915592]
[1763611114743,1.66,143.19,143.14,2.62819592]
[1763611114970,2.36,143.19,143.14,2.62819592]
[1763611115156,0.7,143.18,143.14,2.62819592]
[1763611115549,3.32819592,143.18,143.14,6.98602254]
[1763611115956,0.7,143.17,143.14,6.98602254]
[1763611120080,0.7,143.17,143.14,9.61421846]
[1763611121182,0.7,143.22,143.16,2.62819592]
[1763611121352,1.66,143.21,143.19,2.62819592]
[1763611122384,2.36,143.21,143.19,2.62819592]
[1763611122568,2.36,143.21,143.19,9.61161071]
[1763611123367,1.66,143.21,143.19,9.61161071]
[1763611123556,0.7,143.2,143.19,9.61161071]
[1763611124477,2.36,143.21,143.19,9.61161071]
[1763611125376,1.66,143.21,143.19,9.61161071]
[1763611125584,2.36,143.21,143.19,9.61161071]
[1763611126774,2.36,143.21,143.19,11.08550035]
[1763611128277,0.7,143.24,143.2,4.80208556]
[1763611128582,2.36,143.23,143.2,9.78882769]
[1763611128789,2.36,143.23,143.21,4.10208556]
[1763611129177,0.2,143.26,143.22,4.80208556]
[1763611129483,1.66,143.25,143.24,4.10208556]
[1763611130264,0.2,143.26,143.25,9.78882769]
[1763611130592,1.86,143.26,143.25,13.89091325]
[1763611132290,1.86,143.26,143.25,20.87171604]
[1763611133088,2.58,143.26,143.21,86.24740246]
[1763611133269,2.58,143.26,143.24,4.10208556]
[1763611134272,2.58,143.26,143.24,11.0833109]
[1763611138400,0.72,143.25,143.21,18.12096]
[1763611138694,0.72,143.25,143.21,22.22304556]
[1763611140182,0.72,143.25,143.22,4.10208556]
[1763611140491,0.2,143.26,143.23,9.78882769]
[1763611140679,1.66,143.25,143.24,4.10208556]
[1763611141788,1.66,143.25,143.23,9.78882769]
[1763611141991,1.66,143.25,143.23,13.89091325]
[1763611142192,1.66,143.25,143.24,6.98129014]
[1763611142685,1.66,143.25,143.24,11.0833757]
[1763611144892,2.38,143.25,143.24,11.0833757]
[1763611145313,1.66,143.25,143.24,11.0833757]
[1763611148620,1.66,143.25,143.24,4.10208556]
[1763611148792,1.66,143.25,143.21,68.12096]
[1763611148793,0.72,143.24,143.19,4.10208556]
[1763611149117,1.66,143.23,143.2,4.77208556]
[1763611149493,2.38,143.23,143.2,4.77208556]
[1763611150212,1.66,143.23,143.21,6.9827526]
[1763611151303,0.72,143.24,143.21,6.9827526]
[1763611151613,1.66,143.23,143.21,6.9827526]
[1763611151797,1.66,143.23,143.2,11.75531369]
[1763611152006,2.38,143.23,143.2,11.75531369]
[1763611153511,1.66,143.23,143.2,11.75531369]
[1763611154213,2.38,143.23,143.2,0.67]
[1763611154391,2.38,143.23,143.2,6.9832305]
[1763611154597,1.66,143.23,143.2,11.08531606]
[1763611154798,2.38,143.23,143.2,11.08531606]
[1763611155114,2.38,143.23,143.2,11.75531606]
[1763611155927,0.2,143.26,143.21,0.67]
[1763611156094,0.2,143.26,143.25,4.10208556]
[1763611156303,1.86,143.26,143.24,4.10208556]
[1763611156819,1.66,143.25,143.24,4.77208556]
[1763611157831,2.38,143.25,143.21,0.67]
[1763611157998,2.38,143.25,143.23,4.10208556]
[1763611158704,2.38,143.25,143.22,0.67]
[1763611158911,2.38,143.25,143.22,4.77208556]
[1763611159312,2.38,143.25,143.23,4.10208556]
[1763611159513,1.66,143.25,143.23,4.10208556]
[1763611159909,2.38,143.25,143.23,4.10208556]
[1763611161022,1.66,143.25,143.23,4.10208556]
[1763611161223,0.66,143.24,143.23,4.10208556]
[1763611161603,2.32,143.25,143.23,4.10208556]
[1763611163110,2.32,143.25,143.22,6.98194363]
[1763611163310,2.32,143.25,143.23,4.10208556]
[1763611163524,1.66,143.25,143.23,4.10208556]
[1763611164334,1.66,143.25,143.23,11.08371511]
[1763611164540,1.66,143.25,143.23,11.78371511]
[1763611165119,1.66,143.24,143.23,11.78371511]
[1763611165624,1.66,143.24,143.23,11.78386312]
[1763611167632,1.66,143.24,143.23,11.08386312]
[1763611168825,1.66,143.24,143.23,11.80386312]
[1763611169519,2.33,143.24,143.18,0.72]
[1763611169705,0.67,143.23,143.19,4.10208556]
[1763611169903,0.67,143.23,143.2,4.10208556]
[1763611170106,0.67,143.23,143.21,4.10208556]
[1763611170843,0.67,143.25,143.22,4.10208556]
[1763611171001,1.66,143.24,143.23,4.10208556]
[1763611171825,2.33,143.24,143.23,4.10208556]
[1763611172010,2.33,143.24,143.22,4.10208556]
[1763611173418,1.66,143.24,143.23,11.08386312]
[1763611173816,0.2,143.26,143.24,9.78882769]
[1763611174116,0.2,143.26,143.25,4.10208556]
[1763611174318,1.86,143.26,143.25,4.10208556]
[1763611175534,1.86,143.26,143.25,11.08288835]
[1763611175906,2.53,143.26,143.24,6.981118]
[1763611176112,1.86,143.26,143.24,11.08320356]
[1763611176706,1.86,143.26,143.24,11.80320356]
[1763611179629,1.86,143.26,143.24,11.08320356]
[1763611179828,2.53,143.26,143.24,11.08320356]
[1763611180744,1.86,143.26,143.24,11.08320356]
[1763611181139,1.86,143.26,143.25,4.10208556]
[1763611181429,2.53,143.26,143.24,11.08320356]
[1763611181606,2.53,143.26,143.24,6.981118]
[1763611181803,2.53,143.26,143.24,11.08320356]
[1763611182032,1.86,143.26,143.24,11.80320356]
[1763611182432,0.67,143.25,143.2,17.4578897]
[1763611182613,0.67,143.25,143.23,4.10208556]
[1763611182928,1.86,143.26,143.24,4.10208556]
[1763611183328,2.53,143.26,143.24,4.10208556]
[1763611184527,2.53,143.26,143.24,11.08331722]
[1763611185936,1.86,143.26,143.24,11.08331722]
[1763611186143,2.53,143.26,143.24,11.08331722]
[1763611186742,2.53,143.26,143.24,11.80331722]
[1763611186920,2.53,143.26,143.24,10.32466819]
[1763611187316,0.67,143.25,143.23,6.98169977]
[1763611187534,2.53,143.26,143.24,2.62343653]
[1763611189041,2.53,143.26,143.24,9.6046039]
[1763611192348,0.7,143.25,143.19,7.67336562]
[1763611192527,0.7,143.25,143.21,2.62343653]
[1763611192727,0.7,143.25,143.22,2.62343653]
[1763611193839,0.2,143.26,143.22,2.62343653]
[1763611194042,1.66,143.25,143.24,2.62343653]
[1763611194746,1.66,143.25,143.24,3.31343653]
[1763611195846,1.66,143.25,143.24,10.29472667]
[1763611196247,1.66,143.25,143.24,20.08355436]
[1763611199657,2.36,143.25,143.24,16.77011783]
[1763611199948,1.66,143.25,143.24,10.29472667]
[1763611201148,0.2,143.26,143.25,9.78882769]
[1763611201353,0.2,143.26,143.25,13.10226422]
[1763611201846,0.2,143.3,143.26,50.0]
[1763611202151,1.86,143.3,143.29,12.41226422]
[1763611202348,0.2,143.3,143.29,12.41226422]
[1763611202522,0.2,143.3,143.29,13.10226422]
[1763611203936,0.2,143.3,143.29,70.08111829]
[1763611204126,0.2,143.3,143.29,72.70455482]
[1763611205139,0.2,143.31,143.3,12.41226422]
[1763611205334,0.2,143.31,143.3,13.10226422]
[1763611206042,0.2,143.31,143.3,20.08063128]
[1763611207756,2.56,143.31,143.28,0.69]
[1763611207950,2.56,143.31,143.3,9.60180359]
[1763611208151,1.86,143.31,143.3,9.60180359]
[1763611208338,0.2,143.31,143.3,20.08063128]
[1763611209155,0.2,143.31,143.3,38.20159128]
[1763611209654,0.2,143.39,143.36,50.0]
[1763611209951,1e-08,143.39,143.38,69.38673764]
[1763611210248,1e-08,143.39,143.34,19.78096]
[1763611210249,7.17355871,143.4,143.27,52.79280851]
[1763611210453,2.62343653,143.36,143.3,2.62343653]
[1763611210769,1.66,143.35,143.31,2.62343653]
[1763611211350,1.66,143.35,143.32,2.62343653]
[1763611211741,1.66,143.34,143.32,2.62343653]
[1763611212843,1.66,143.34,143.31,6.97786191]
[1763611213045,6.97636818,143.35,143.31,7.66786191]
[1763611213245,1.66,143.34,143.31,10.29129844]
[1763611213763,1.66,143.34,143.31,0.69]
[1763611213942,1.66,143.34,143.31,10.29125882]
[1763611214359,1.66,143.34,143.32,0.69]
[1763611214661,1.66,143.34,143.32,3.31343653]
[1763611215242,1.66,143.34,143.33,3.31343653]
[1763611215456,0.2,143.4,143.34,9.78882769]
[1763611215657,0.2,143.4,143.32,2.62343653]
[1763611215658,2.62343653,143.38,143.32,2.62343653]
[1763611215864,6.97495989,143.37,143.32,2.62343653]
[1763611216052,2.62343653,143.36,143.3,20.74439653]
[1763611216256,2.62343653,143.36,143.3,2.62343653]
[1763611216657,2.62343653,143.36,143.3,3.31343653]
[1763611217159,6.97593303,143.35,143.3,10.29180251]
[1763611217358,1.66,143.34,143.28,0.69]
[1763611217564,1.66,143.33,143.3,2.62343653]
[1763611217763,2.62343653,143.36,143.3,2.62343653]
[1763611217764,1.66,143.32,143.3,2.62343653]
[1763611218277,1.66,143.32,143.31,13.10226422]
[1763611219065,1.66,143.32,143.31,9.78882769]
[1763611219267,1.66,143.32,143.28,0.69]
[1763611219674,1.66,143.32,143.28,3.31343653]
[1763611219971,1.66,143.33,143.31,2.62343653]
[1763611220567,1.66,143.33,143.32,0.7]
[1763611220776,1.66,143.33,143.32,10.48882769]
[1763611220963,1.66,143.33,143.31,2.62343653]
[1763611221155,1.66,143.33,143.31,10.30123516]
[1763611221672,1.66,143.33,143.32,0.7]
[1763611223854,1.66,143.33,143.3,34.88802675]
[1763611224062,8.63695905,143.33,143.29,2.62343653]
[1763611224369,1.66,143.33,143.3,3.32343653]
[1763611224572,1.66,143.33,143.3,0.7]
[1763611225267,1.66,143.33,143.31,6.97788012]
[1763611225667,1.66,143.33,143.31,7.67788012]
[1763611225857,1.66,143.33,143.31,0.7]
[1763611227286,1.66,143.32,143.31,7.67777677]
[1763611228302,1.66,143.32,143.28,10.30243214]
[1763611228578,4.28343653,143.32,143.26,12.41226422]
[1763611228782,4.28343653,143.32,143.26,13.11226422]
[1763611228971,4.28343653,143.32,143.26,10.48882769]
[1763611229163,9.60131665,143.31,143.26,9.78882769]
[1763611229988,27.04601695,143.31,143.25,3.32343653]
[1763611230188,2.62343653,143.29,143.23,7.6815921]
[1763611230375,1.66,143.28,143.23,20.09385632]
[1763611230575,4.28343653,143.28,143.23,17.47041979]
[1763611230771,4.28343653,143.28,143.23,10.48882769]
[1763611231289,9.60326482,143.27,143.21,0.7]
[1763611231469,9.60326482,143.27,143.21,3.32343653]
[1763611231669,2.62343653,143.26,143.21,0.7]
[1763611232488,27.05283556,143.27,143.21,3.32343653]
[1763611233200,27.05283556,143.27,143.21,10.30606945]
[1763611233495,2.62343653,143.25,143.21,0.7]
[1763611233661,1.66,143.24,143.21,0.7]
[1763611234059,1.66,143.24,143.21,7.68266557]
[1763611234295,1.66,143.24,143.21,10.3061021]
[1763611234872,1.66,143.24,143.22,0.7]
[1763611235075,1.66,143.24,143.21,6.98266557]
[1763611235388,1.66,143.24,143.22,0.7]
[1763611236997,1.66,143.24,143.21,9.6061021]
[1763611237296,1.66,143.24,143.21,10.3061021]
[1763611238293,1.66,143.24,143.21,3.32343653]
[1763611238881,1.66,143.24,143.21,2.62343653]
[1763611239083,1.66,143.24,143.22,0.7]
[1763611239279,1.66,143.24,143.21,0.7]
[1763611239871,8.6412932,143.24,143.21,0.7]
[1763611240081,11.26472973,143.24,143.18,6.98402586]
[1763611240289,11.26472973,143.24,143.18,10.30746239]
[1763611240498,2.62343653,143.23,143.17,19.39693209]
[1763611240701,2.62343653,143.2,143.15,0.1]
[1763611241008,44.21547855,143.24,143.15,7.78556222]
[1763611241009,1.66,143.19,143.15,7.78556222]
[1763611241310,42.55547855,143.24,143.15,10.40899875]
[1763611241606,4.28343653,143.23,143.17,2.62343653]
[1763611242078,4.28343653,143.23,143.18,0.7]
[1763611242279,6.98226504,143.22,143.18,0.7]
[1763611242804,9.60570157,143.22,143.18,0.7]
[1763611243675,11.26541116,143.23,143.18,7.68414712]
[1763611243877,2.62343653,143.22,143.18,0.7]
[1763611244184,9.60688349,143.2,143.15,7.78549125]
[1763611244382,1.66,143.19,143.15,7.78549125]
[1763611244988,1.66,143.19,143.16,3.32343653]
[1763611245518,1.66,143.19,143.17,0.7]
[1763611245685,9.60582505,143.22,143.17,0.7]
[1763611246011,1.66,143.21,143.17,3.32343653]
[1763611246198,1.66,143.21,143.17,10.30771611]
[1763611246715,8.64278511,143.21,143.17,7.68427958]
[1763611247707,1.66,143.21,143.18,3.32343653]
[1763611248016,1.66,143.2,143.18,0.7]
[1763611248340,1.66,143.2,143.19,0.7]
[1763611248812,1.66,143.2,143.19,7.68372791]
[1763611251218,1.66,143.2,143.19,11.78592643]
[1763611251418,0.71,143.28,143.2,9.78882769]
[1763611251724,1.66,143.27,143.23,4.10219852]
[1763611252091,1.66,143.27,143.24,0.7]
[1763611252522,1.66,143.27,143.24,7.68105288]
[1763611254100,9.34984935,143.27,143.22,11.78433267]
[1763611254324,2.37,143.27,143.23,0.7]
[1763611254517,2.37,143.27,143.23,7.68135313]
[1763611254915,1.66,143.27,143.23,11.78355165]
[1763611255102,0.71,143.31,143.25,4.10219852]
[1763611255302,1.66,143.3,143.25,4.10219852]
[1763611255520,1.66,143.3,143.25,4.80219852]
[1763611255715,2.37,143.3,143.26,0.7]
[1763611256526,1.66,143.3,143.26,11.78217658]
[1763611256823,1.66,143.3,143.27,0.7]
[1763611257027,6.97758358,143.32,143.27,4.80219852]
[1763611257315,1.66,143.31,143.3,4.10219852]
[1763611257830,1.66,143.31,143.3,0.7]
[1763611258338,1.66,143.31,143.29,4.10219852]
[1763611258532,1.66,143.31,143.29,11.78105259]
[1763611259712,1.66,143.31,143.3,0.7]
[1763611260124,1.66,143.31,143.3,4.80219852]
[1763611260515,1.66,143.31,143.3,11.78056558]
[1763611260926,1.66,143.31,143.3,21.56939327]
[1763611261309,1.66,143.31,143.3,7.67836706]
[1763611261513,1.66,143.31,143.3,11.78056558]
[1763611262613,1.66,143.31,143.3,21.56939327]
[1763611262833,0.71,143.35,143.3,39.01531092]
[1763611263036,21.5373372,143.39,143.34,4.10219852]
[1763611263037,7.68465867,143.38,143.34,4.10219852]
[1763611263383,1.66,143.37,143.34,4.10219852]
[1763611263515,1.66,143.37,143.34,4.80219852]
[1763611263710,1.66,143.37,143.34,4.10219852]
[1763611263911,1.66,143.37,143.35,0.7]
[1763611264215,1.66,143.37,143.35,4.80219852]
[1763611264838,1.66,143.36,143.35,16.76474099]
[1763611265134,1.66,143.36,143.35,20.86693951]
[1763611265341,1.66,143.36,143.35,21.56693951]
[1763611270824,0.2,143.4,143.35,93.1089706]
[1763611271035,1.66,143.39,143.37,9.78882769]
[1763611271544,1.66,143.39,143.38,10.48882769]
[1763611272126,1.66,143.39,143.38,21.56549963]
[1763611272649,1.66,143.39,143.38,4.10219852]
[1763611272817,2.37,143.39,143.36,4.10219852]
[1763611273017,1.66,143.39,143.36,4.80219852]
[1763611274125,1.66,143.39,143.36,11.77732275]
[1763611274328,1.66,143.39,143.36,4.10219852]
[1763611274531,2.37,143.39,143.35,4.10219852]
[1763611274841,8.63409415,143.39,143.35,4.80219852]
[1763611275012,8.63409415,143.39,143.35,4.10219852]
[1763611275217,4.81219852,143.38,143.32,11.77939792]
[1763611275640,0.71,143.37,143.32,11.77939792]
[1763611275829,0.71,143.37,143.32,7.6771994]
[1763611276029,0.71,143.37,143.32,4.80219852]
[1763611276250,6.97544642,143.36,143.32,4.80219852]
[1763611276428,1.66,143.35,143.31,9.78882769]
[1763611276631,2.37,143.35,143.32,4.10219852]
[1763611277025,2.37,143.35,143.32,4.80219852]
[1763611277026,1.66,143.35,143.32,4.80219852]
[1763611277852,0.71,143.38,143.34,4.10219852]
[1763611278060,1.66,143.37,143.34,4.10219852]
[1763611278234,1.66,143.37,143.33,0.7]
[1763611278444,2.37,143.37,143.33,4.80219852]
[1763611279460,9.34501779,143.37,143.33,11.77891973]
[1763611279846,2.37,143.37,143.34,4.10219852]
[1763611280158,2.37,143.37,143.33,11.07890717]
[1763611280159,8.63496365,143.37,143.33,11.07890717]
[1763611280345,9.32496365,143.37,143.33,11.79890717]
[1763611280733,9.32496365,143.37,143.33,4.82219852]
[1763611280947,0.69,143.36,143.32,4.10219852]
[1763611281256,0.69,143.36,143.32,4.82219852]
[1763611281555,7.66586759,143.36,143.32,4.82219852]
[1763611281762,7.66586759,143.36,143.32,4.10219852]
[1763611281937,7.66586759,143.36,143.32,4.82219852]
[1763611282132,24.41448366,143.36,143.29,16.76750762]
[1763611282327,0.69,143.35,143.31,4.10219852]
[1763611282532,0.69,143.35,143.32,4.10219852]
[1763611282831,0.69,143.35,143.32,4.82219852]
[1763611283248,1.66,143.34,143.32,4.82219852]
[1763611284352,0.69,143.33,143.28,0.72]
[1763611284541,4.10219852,143.32,143.26,4.82219852]
[1763611284869,20.47096,143.31,143.24,4.10219852]
[1763611285163,1.66,143.3,143.28,4.10219852]
[1763611285350,1.66,143.3,143.29,4.82219852]
[1763611285936,1.66,143.3,143.29,11.80105259]
[1763611286949,1.66,143.3,143.29,21.58988028]
[1763611287146,1.66,143.32,143.3,9.78882769]
[1763611287354,1.66,143.32,143.31,4.10219852]
[1763611287541,1.66,143.32,143.31,4.76219852]
[1763611287942,1.66,143.32,143.31,11.74007864]
[1763611291681,1.66,143.32,143.31,7.63788012]
[1763611291855,1.66,143.32,143.31,11.74007864]
[1763611293681,1.66,143.32,143.31,21.52890633]
[1763611293888,0.91,143.4,143.32,9.78882769]
[1763611294067,0.2,143.4,143.38,4.10219852]
[1763611294258,1.66,143.39,143.38,4.10219852]
[1763611294780,1.66,143.39,143.38,4.76219852]
[1763611295652,0.2,143.4,143.39,9.78882769]
[1763611295853,0.2,143.4,143.39,14.55102621]
[1763611296052,0.2,143.4,143.39,13.89102621]
[1763611296286,0.2,143.4,143.39,14.55102621]
[1763611297589,0.2,143.4,143.39,21.52501323]
[1763611301885,0.2,143.4,143.39,17.42281471]
[1763611302068,0.2,143.4,143.39,21.52501323]
[1763611302763,0.2,143.4,143.39,4.10219852]
[1763611303164,0.2,143.4,143.39,4.76219852]
[1763611303883,0.2,143.4,143.36,4.10219852]
[1763611303884,0.91,143.4,143.36,4.10219852]
[1763611304189,0.91,143.4,143.35,4.10219852]
[1763611304389,0.71,143.39,143.35,4.10219852]
[1763611304772,0.71,143.39,143.34,4.10219852]
[1763611304976,0.71,143.39,143.35,4.10219852]
[1763611305890,7.68407616,143.39,143.35,4.10219852]
[1763611306290,0.71,143.38,143.35,11.07804441]
[1763611306498,1.66,143.37,143.35,11.07804441]
[1763611306794,4.10219852,143.36,143.29,7.63885407]
[1763611306971,4.81219852,143.36,143.3,14.55102621]
[1763611307167,0.71,143.35,143.31,4.10219852]
[1763611307585,0.71,143.35,143.31,4.76219852]
[1763611307791,1.66,143.34,143.31,11.73975784]
[1763611309703,0.71,143.33,143.3,11.08046807]
[1763611310501,1.66,143.34,143.31,4.10219852]
[1763611310690,1.66,143.34,143.32,4.10219852]
[1763611310897,1.66,143.34,143.31,3.31042327]
[1763611311200,1.66,143.34,143.3,24.4241872]
[1763611311381,1.66,143.34,143.31,2.62042327]
[1763611311581,2.34,143.34,143.31,2.62042327]
[1763611312904,2.34,143.34,143.31,9.59811187]
[1763611313299,0.68,143.33,143.31,9.59811187]
[1763611313695,1.66,143.34,143.31,9.59811187]
[1763611313897,2.34,143.34,143.31,9.59811187]
[1763611314708,9.3164341,143.34,143.3,6.97818931]
[1763611314889,9.3164341,143.34,143.25,0.69]
[1763611314890,6.97739324,143.32,143.25,0.69]
[1763611315088,2.62042327,143.3,143.25,2.62042327]
[1763611315296,2.34,143.29,143.25,3.31042327]
[1763611315489,1.66,143.29,143.28,2.62042327]
[1763611315677,1.66,143.29,143.26,10.47882769]
[1763611315884,1.66,143.29,143.27,0.69]
[1763611316097,1.66,143.29,143.27,3.31042327]
[1763611317424,1.66,143.29,143.27,10.29022676]
[1763611318403,0.68,143.28,143.24,2.62042327]
[1763611319220,0.68,143.32,143.27,2.62042327]
[1763611319415,1.66,143.31,143.27,2.62042327]
[1763611319623,1.66,143.31,143.27,3.31042327]
[1763611319932,2.34,143.31,143.27,3.31042327]
[1763611320307,1.66,143.3,143.28,10.28935512]
[1763611320635,1.66,143.3,143.29,2.62042327]
[1763611321511,1.66,143.3,143.29,9.59927734]
[1763611321833,7.65559392,143.36,143.3,9.78882769]
[1763611322004,1.66,143.35,143.31,2.62042327]
[1763611322430,2.34,143.35,143.31,2.62042327]
[1763611322600,0.68,143.34,143.3,0.69]
[1763611322797,0.68,143.34,143.27,27.7211098]
[1763611322798,2.62042327,143.33,143.27,27.7211098]
[1763611323027,2.62042327,143.32,143.26,2.62042327]
[1763611323212,2.62042327,143.3,143.24,9.60171341]
[1763611323418,6.97885407,143.29,143.24,9.60171341]
[1763611323736,7.65885407,143.29,143.24,9.60171341]
[1763611324043,0.68,143.28,143.24,9.60171341]
[1763611324215,0.68,143.28,143.23,27.93243783]
[1763611324216,1.66,143.27,143.23,7.67158595]
[1763611324407,1.66,143.27,143.23,10.29200922]
[1763611324606,2.34,143.27,143.23,10.29200922]
[1763611324807,0.68,143.29,143.24,3.31042327]
[1763611325006,1.66,143.28,143.24,3.31042327]
[1763611325236,0.68,143.29,143.24,3.31042327]
[1763611325433,0.68,143.29,143.25,6.98080279]
[1763611325739,1.66,143.28,143.25,6.98080279]
[1763611325913,1.66,143.28,143.24,7.67116559]
[1763611326119,0.68,143.27,143.21,2.62042327]
[1763611326301,2.62042327,143.26,143.2,12.40925096]
[1763611326732,0.68,143.25,143.2,13.09925096]
[1763611326907,1.66,143.24,143.2,13.09925096]
[1763611327435,2.34,143.24,143.2,17.46191195]
[1763611327599,2.34,143.24,143.2,20.08233522]
[1763611328412,1.66,143.24,143.21,3.31042327]
[1763611329038,1.66,143.24,143.21,0.69]
[1763611329737,9.32133274,143.24,143.2,19.39233522]
[1763611329933,9.32133274,143.24,143.2,20.08233522]
[1763611330142,1.66,143.26,143.23,2.62042327]
[1763611330338,1.66,143.26,143.25,2.62042327]
[1763611330543,1.66,143.26,143.23,0.69]
[1763611330722,1.66,143.26,143.23,3.31042327]
[1763611331041,1.66,143.26,143.25,2.62042327]
[1763611331411,1.66,143.26,143.25,3.31042327]
[1763611331716,1.66,143.26,143.25,10.29122606]
[1763611332230,4.96042327,143.26,143.2,3.31042327]
[1763611332549,0.68,143.25,143.2,3.31042327]
[1763611333137,0.68,143.25,143.21,6.9823216]
[1763611333827,0.68,143.25,143.21,7.6723216]
[1763611334938,1.66,143.24,143.22,3.31042327]
[1763611335118,1.66,143.24,143.23,2.62042327]
[1763611335937,1.66,143.24,143.23,9.60220083]